Cogmind - Beta 15 @@@ ROGUE MODE // 2025.07.31 @ 23:30:25 Player: P9H Result: Destroyed by P-80 Master with Gamma Rifle Performance ------------- Evolutions (7) 3500 Regions Visited (14) 2800 Robots Destroyed (128) 640 Value Destroyed (5093) 5093 Prototype IDs (25) 500 Alien Tech Used (0) 0 Bonus (514) 514 TOTAL SCORE: 13047 Bonus ------- Follower Combat Kills 214 Aligned with FarCom 300 Cogmind --------- Core Integrity 0/1300 Matter 295/300 Energy 98/100 System Corruption 24% Temperature Hot (205) Movement Core (50) Location -3/Research Parts ------- > --- POWER (3) -------- (None) > --- PROPULSION (4) --- (None) > --- UTILITY (9) ------ (None) > --- WEAPON (5) ------- (None) > --- INVENTORY (5) ---- Matter Compressor (250) 0b10 Decoder Chip [Scout] Advanced Melee Analysis Suite Weapon Mount Improved Weapon Cycler Peak State ------------ > --- POWER ------------ Light Angular Momentum Engine Micro Fission Core > --- PROPULSION ------- Medium Treads Medium Treads Medium Treads Medium Treads > --- UTILITY ---------- Huge Storage Unit Improved Signal Interpreter Core Analyzer Matter Filter Cloaking Device Improved Light Armor Plating Layered Medium Armor Plating Improved Hacking Suite Trap Reconfigurator > --- WEAPON ----------- Heavy Machine Gun Heavy Machine Gun Assault Cannon Heavy Flak Cannon > --- INVENTORY -------- Hybrid Deuterium Engine Angular Momentum Engine Angular Momentum Engine Light Fission Core Fusion Compressor Medium Treads Medium Treads Medium Treads Improved Cooling System Coolant Injector Matter Compressor Matter Compressor Long-range Sensor Array Advanced Targeting Computer Advanced Targeting Computer Weapon Mount Improved Target Analyzer Improved Light Armor Plating Hacking Suite Heavy Machine Gun Heavy Machine Gun Heavy Rocket Launcher Long-range Missile Launcher Powered Hammer Power Sword [Rating: 95] Favorites ----------- Power Ion Engine Engine Ion Engine Power Core Light Nuclear Core Propulsion Medium Treads Treads Medium Treads Wheel Wheel Utility Huge Storage Unit Device Trap Reconfigurator Storage Huge Storage Unit Processor Improved Signal Interpreter Hackware Hacking Suite Protection Light Armor Plating Weapon Light Assault Rifle Energy Gun Heavy EM Pulse Gun Energy Cannon Phase Cannon Ballistic Gun Light Assault Rifle Ballistic Cannon Mini Assault Cannon Launcher Heavy Rocket Launcher Impact Weapon Powered Hammer Slashing Weapon Blade Saw Build | -11 -10 -10 -9 -9 -9 -8 -8 -7 -6 -5 -4 -4 -4 -3 ------- Run | Yrd Mat Min Mat Min Exi Min Mat Fac Fac Fac Fac Upp Upp Res Slots Evolved 14 | . . . 2 . . . 2 2 2 2 2 . . 2 Power 2 | . . . . . . . . 1 . . . . . 1 Propulsion 2 | . . . . . . . 1 . . . 1 . . . Utility 7 | . . . 1 . . . 1 1 1 2 1 . . . Weapon 3 | . . . 1 . . . . . 1 . . . . 1 Parts Attached 131 | 5 9 8 2 . . . 14 22 36 5 8 10 8 4 Power 25 | 1 1 1 . . . . 4 5 7 1 . 1 2 2 Engine 12 | 1 1 1 . . . . 2 2 3 . . 1 1 . Core 13 | . . . . . . . 2 3 4 1 . . 1 2 Reactor . | . . . . . . . . . . . . . . . Propulsion 26 | 2 2 2 . . . . 4 5 6 . 2 1 2 . Treads 23 | 2 . 2 . . . . 4 5 6 . 2 1 1 . Leg . | . . . . . . . . . . . . . . . Wheel 3 | . 2 . . . . . . . . . . . 1 . Hover . | . . . . . . . . . . . . . . . Flight . | . . . . . . . . . . . . . . . Utility 37 | 1 3 . 1 . . . 3 3 14 2 3 2 4 1 Device 16 | . 1 . . . . . 2 3 5 1 1 . 2 1 Storage 4 | 1 1 . . . . . . . 2 . . . . . Processor 5 | . . . . . . . 1 . 1 . 1 2 . . Hackware 5 | . 1 . . . . . . . 3 . 1 . . . Protection 7 | . . . 1 . . . . . 3 1 . . 2 . Artifact . | . . . . . . . . . . . . . . . Weapon 43 | 1 3 5 1 . . . 3 9 9 2 3 6 . 1 Energy Gun 6 | . 1 . 1 . . . . 1 1 . . 2 . . Energy Cannon 6 | . 1 . . . . . . 1 3 . . 1 . . Ballistic Gun 18 | 1 1 5 . . . . 1 4 2 1 3 . . . Ballistic Cannon 5 | . . . . . . . 1 1 1 1 . 1 . . Launcher 4 | . . . . . . . . 2 . . . 2 . . Special Weapon . | . . . . . . . . . . . . . . . Impact Weapon 2 | . . . . . . . 1 . 1 . . . . . Slashing Weapon 2 | . . . . . . . . . 1 . . . . 1 Piercing Weapon . | . . . . . . . . . . . . . . . Special Melee Weapon . | . . . . . . . . . . . . . . . Unidentified Prototypes 2 | . . . . . . . . 2 . . . . . . Parts Lost 83 | . 3 4 . . . . 4 16 15 1 4 12 14 10 Power 18 | . 1 1 . . . . 1 4 4 . . 2 2 3 Propulsion 23 | . 2 2 . . . . 2 6 2 . 1 3 4 1 Utility 17 | . . . . . . . . 2 5 . 1 4 2 3 Weapon 25 | . . 1 . . . . 1 4 4 1 2 3 6 3 Highest Loss Streak 9 | . 2 2 . . . . 2 4 7 1 3 8 8 9 To Critical Strikes 2 | . . . . . . . 1 . 1 . . . . . Average Backups 22 | 3 15 24 24 25 25 25 24 23 24 23 22 19 20 15 Power 3 | . 3 3 4 4 4 4 4 2 3 5 5 3 3 . Propulsion 2 | 1 2 . . 3 3 3 3 2 4 4 2 . 1 . Utility 9 | . 5 10 8 8 8 9 8 12 10 7 10 11 11 12 Weapon 6 | . 4 9 11 10 9 9 9 6 6 7 4 4 3 1 Tool/Special . | . . . . . . . . . . . . . . . Unused Backups 51 | 1 2 . 3 . 1 . 11 10 11 . . . . 12 Power 4 | . . . . . . . 2 . 2 . . . . . Propulsion 1 | . . . . . . . . 1 . . . . . . Utility 32 | . 1 . 1 . . . 4 7 7 . . . . 12 Weapon 14 | 1 1 . 2 . 1 . 5 2 2 . . . . . Tool/Special . | . . . . . . . . . . . . . . . Average Slot Usage (%) 96 | . 99 99 99 100 100 100 99 97 98 99 99 97 81 51 Engine 7 | . 14 13 11 11 11 11 1 5 3 5 5 9 9 3 Core 4 | . . . . . . . 7 8 8 5 5 . . 6 Treads 20 | . 19 18 22 22 22 22 26 20 19 17 20 20 10 2 Wheel 1 | . 8 9 . . . . . . . . . . . . Device 9 | . 2 . . . . . 17 20 11 13 10 7 8 6 Storage 8 | . 14 14 11 11 11 11 9 7 6 5 5 5 5 3 Processor 8 | . . . . . . . . 7 10 11 13 20 21 15 Hackware 8 | . 10 14 11 11 11 11 9 1 6 5 6 10 10 7 Protection 2 | . . . 10 11 11 11 . . 2 8 9 . . . Energy Gun 3 | . 2 . 10 11 11 11 5 . 1 . . 6 6 . Energy Cannon 3 | . 11 3 . . . . . 3 4 4 . . 4 . Ballistic Gun 11 | . 14 24 22 22 22 22 14 13 6 5 11 5 1 . Ballistic Cannon 3 | . . . . . . . 4 2 5 5 4 7 1 . Impact Weapon 1 | . . . . . . . 1 1 4 5 3 . . . Peak Build Rating 95 | 5 12 12 15 15 16 16 34 53 76 85 95 90 94 67 Average Rating 48 | 3 9 11 14 15 15 16 28 42 68 81 91 87 74 51 On Entrance 37 | . 5 12 12 15 15 16 16 34 53 71 85 88 82 58 Naked Turns 46 | . . . . . . . . . . . . . . 46 Heaviest Build 138 | 10 89 89 93 93 93 93 98 108 130 134 133 138 132 113 Greatest Support 112 | 40 40 40 40 40 40 40 60 76 84 84 112 112 107 28 Greatest Overweight (x) 37 | . 4 4 2 2 2 2 2 2 3 1 1 2 32 37 Average Overweight (x) 1 | . 2 2 2 2 2 2 1 1 1 1 1 1 2 1 Largest Inventory Capacity 25 | 8 25 25 25 25 25 25 25 25 25 25 25 25 25 25 Average Capacity 24 | 6 18 25 25 25 25 25 25 25 25 25 25 25 25 21 Most Carried 25 | 5 25 25 25 25 25 25 25 25 25 25 25 24 25 19 Average Carried 22 | 3 15 24 24 25 24 25 24 23 24 23 22 19 20 15 Final Capacity 25 | 8 25 25 25 25 25 25 25 25 25 25 25 25 25 5 Final Carried 25 | 4 25 25 25 25 25 25 25 25 25 25 24 21 18 5 Class Distribution -------------------- 19% | Skirmisher 19% | Hacker-Gunner 17% | Mutant 13% | Scavenger-Skirmisher 13% | Scavenger-Tank 5% | Hacker-Skirmisher 3% | Scavenger-Mutant 3% | Tank Dominant Class ---------------- Mutant | -10/Materials Scavenger-Mutant | -10/Mines Scavenger-Tank | -9/Materials Scavenger-Tank | -9/Mines Scavenger-Tank | -9/Exiles Scavenger-Skirmisher | -8/Mines Scavenger-Skirmisher | -8/Materials Skirmisher | -7/Factory Skirmisher | -6/Factory Tank | -5/Factory Gunner | -4/Factory Hacker-Gunner | -4/Upper Caves Hacker-Gunner | -4/Upper Caves Hacker-Mutant | -3/Research Resources | -11 -10 -10 -9 -9 -9 -8 -8 -7 -6 -5 -4 -4 -4 -3 ----------- Run | Yrd Mat Min Mat Min Exi Min Mat Fac Fac Fac Fac Upp Upp Res Matter Collected 5105 | 177 415 129 66 . . . 340 579 1225 142 381 915 679 57 Remotely 456 | . . . . . . . . 153 303 . . . . . Salvage Created 4640 | . 593 170 62 . . . 647 638 1030 215 426 453 406 . Parts 242 | . 40 16 3 . . . 35 30 50 13 17 24 14 . Haulers Intercepted 1 | . 1 . . . . . . . . . . . . . Recyclers Shooed 6 | . . . . . . . . 1 2 . 3 . . . Parts Field Recycled . | . . . . . . . . . . . . . . . Retrieved Matter . | . . . . . . . . . . . . . . . Parts Self-Destructed 47 | . . . . . . . . . . . . 26 21 . Prevented 2 | . . . . . . . . . . . . 2 . . Kills | -11 -10 -10 -9 -9 -9 -8 -8 -7 -6 -5 -4 -4 -4 -3 ------- Run | Yrd Mat Min Mat Min Exi Min Mat Fac Fac Fac Fac Upp Upp Res Combat Hostiles Destroyed 106 | . 14 8 1 . . . 13 18 23 4 5 13 7 . Guns 45 | . 5 8 1 . . . 7 10 3 2 1 8 . . Cannons 50 | . 9 . . . . . 6 4 18 2 4 4 3 . AOE 9 | . . . . . . . . 4 2 . . 1 2 . Classes Destroyed 15 | . 7 . . . . . 5 1 1 . . 1 . . Worker 4 | . . . . . . . 1 . . 1 2 . . . Builder 5 | . 1 . . . . . . . 1 . 3 . . . Hauler 1 | . 1 . . . . . . . . . . . . . Recycler 5 | . 1 . . . . . 1 . 2 . 1 . . . Operator 2 | . 1 . 1 . . . . . . . . . . . Watcher 5 | . 3 . . . . . 2 . . . . . . . Swarmer 31 | . 8 6 . . . . . 3 7 . . 7 . . Cutter 3 | . . . . . . . 3 . . . . . . . Grunt 29 | . 6 2 1 . . . 3 7 3 2 1 . 4 . Duelist 1 | . . . . . . . 1 . . . . . . . Sentry 9 | . . . . . . . 5 2 1 . . 1 . . Specialist 2 | . . . . . . . . . 2 . . . . . Hunter 9 | . . . . . . . 1 . 2 . 2 2 2 . Programmer 21 | . . . . . . . . 6 8 2 2 2 1 . Behemoth 1 | . . . . . . . . . . . . 1 . . Best Kill Streak 7 | . 3 3 2 . . . 5 5 4 2 7 4 4 . Combat Bots Only 5 | . 3 3 1 . . . 4 5 4 1 2 4 4 . Max Kills in Single Turn 2 | . 2 1 1 . . . 1 2 2 1 2 1 2 . Gunslinging . | . . . . . . . . . . . . . . . Exploded 2 | . . . . . . . . 2 1 . . 1 1 . Melee . | . . . . . . . . . . . . . . . Uniques/NPCs Destroyed . | . . . . . . . . . . . . . . . Combat | -11 -10 -10 -9 -9 -9 -8 -8 -7 -6 -5 -4 -4 -4 -3 -------- Run | Yrd Mat Min Mat Min Exi Min Mat Fac Fac Fac Fac Upp Upp Res Hostile Shots Fired 1168 | . 92 73 16 . . . 84 225 220 17 84 124 108 125 Missed 324 | . 21 18 6 . . . 27 70 57 4 21 33 29 38 Hits 844 | . 71 55 10 . . . 57 155 163 13 63 91 79 87 Melee 2 | . . . . . . . 2 . . . . . . . Projectile 842 | . 71 55 10 . . . 55 155 163 13 63 91 79 87 Critical Strikes 32 | . . . . . . . 5 5 7 1 2 . 4 8 Part Disruptions 2 | . . . . . . . . . 1 . . . . 1 Damage Taken 14224 | . 686 526 138 . . . 840 2100 2927 252 1106 1738 1764 2147 Core 3441 | . 92 129 28 . . . 148 205 473 . 112 182 764 1308 Absorbed by Shields . | . . . . . . . . . . . . . . . Redirected to Shielding 30 | . . . . . . . . . . . . . 30 . Ignored by Resistances 8 | . . . . . . . . . 8 . . . . . Core Remaining (%) 62 | 100 . 11 . . . 93 73 70 44 100 . . 8 . Volleys Fired 350 | . 66 29 13 . . . 44 60 53 11 22 30 22 . Largest 4 | . 2 2 3 . . . 3 3 4 3 4 4 4 . Hottest 267 | . 80 80 85 . . . 102 108 178 152 141 229 267 . Shots Fired 956 | . 127 59 39 . . . 124 168 158 33 76 116 55 1 Gun 606 | . 72 54 39 . . . 103 130 70 11 35 68 24 . Cannon 334 | . 55 5 . . . . 21 33 86 22 41 42 29 . Launcher 16 | . . . . . . . . 5 2 . . 6 2 1 Special . | . . . . . . . . . . . . . . . Kinetic 724 | . 65 54 26 . . . 98 144 119 22 76 87 33 . Thermal 145 | . 62 5 . . . . . . 29 11 . 19 19 . Explosive 16 | . . . . . . . . 5 2 . . 6 2 1 Electromagnetic 71 | . . . 13 . . . 26 19 8 . . 4 1 . Robot Hit Streak 18 | . 6 6 4 . . . 18 8 13 5 8 11 4 5 Robot Miss Streak 12 | . 4 5 7 . . . 6 8 6 4 12 8 3 . Penetration Max . | . . . . . . . . . . . . . . . Secondary Targets 1 | . . . . . . . 1 . . . . . . . Max Gunslinging Chain 1 | . . . . . . . 1 . . . . . . . Shots Hit Robots 570 | . 70 27 20 . . . 86 109 104 20 49 58 24 3 Core Hits 318 | . 33 14 5 . . . 55 65 48 10 36 39 12 1 Critical Kills 6 | . . . . . . . . . . . . 2 4 . Critical Parts Destroyed 11 | . . . . . . . . 1 3 . . 4 2 1 Critical Strikes 24 | . 1 . . . . . . 1 6 . 1 8 6 1 Burn 1 | . 1 . . . . . . . . . . . . . Meltdown 2 | . . . . . . . . . . . . . 2 . Destroy 13 | . . . . . . . . 1 1 . . 7 4 . Blast 2 | . . . . . . . . . 1 . 1 . . . Corrupt 1 | . . . . . . . . . . . . 1 . . Smash 3 | . . . . . . . . . 2 . . . . 1 Sever 2 | . . . . . . . . . 2 . . . . . Melee Attacks 113 | . . . . . . . 3 3 81 . 22 . . 4 Impact 98 | . . . . . . . 3 3 67 . 22 . . 3 Slashing 15 | . . . . . . . . . 14 . . . . 1 Piercing . | . . . . . . . . . . . . . . . Sneak Attacks 7 | . . . . . . . 1 . 4 . 2 . . . Combat Hostiles . | . . . . . . . . . . . . . . . Follow-up Attacks . | . . . . . . . . . . . . . . . Damage Inflicted 11524 | . 1090 237 215 . . . 1108 1993 2541 555 1313 1419 896 157 Guns 4913 | . 513 203 182 . . . 655 1041 634 237 462 743 243 . Cannons 4429 | . 577 34 . . . . 347 502 1318 318 663 321 349 . Explosions 1409 | . . . 33 . . . . 450 175 . 20 355 304 72 Melee 768 | . . . . . . . 104 . 413 . 166 . . 85 Ramming 5 | . . . . . . . 2 . 1 . 2 . . . Kinetic 6890 | . 475 203 111 . . . 730 1369 1463 389 1125 786 239 . Thermal 1886 | . 615 34 33 . . . . 41 415 166 . 249 333 . Explosive 1315 | . . . . . . . . 409 175 . . 355 304 72 Electromagnetic 660 | . . . 71 . . . 272 174 74 . 20 29 20 . Impact 584 | . . . . . . . 104 . 229 . 166 . . 85 Slashing 184 | . . . . . . . . . 184 . . . . . Piercing . | . . . . . . . . . . . . . . . Highest Corruption 24 | . 3 3 . . . . . 13 9 2 1 3 3 24 Average Corruption 4 | . 2 3 . . . . . 9 4 1 1 2 3 16 Corruption Purged . | . . . . . . . . . . . . . . . Corruption Blocked . | . . . . . . . . . . . . . . . Effects 279 | . 24 15 . . . . . 69 78 5 5 48 29 6 Message Errors 69 | . 6 7 . . . . . 17 15 1 2 11 9 1 Matter Fused 68 | . 5 2 . . . . . 12 22 2 1 13 10 1 Heat Flow Errors 37 | . 1 . . . . . . 21 6 . . 5 2 2 Energy Discharges 27 | . 3 . . . . . . 4 13 . . 4 3 . Parts Rejected 3 | . . 1 . . . . . . . . . . 2 . Parts Fused 3 | . 2 . . . . . . . . . . 1 . . Data Loss (minor) 34 | . 3 3 . . . . . 6 9 1 1 9 1 1 Data Loss (major) 12 | . 1 . . . . . . 2 5 1 . 2 1 . Misfires 17 | . 1 1 . . . . . 4 7 . 1 2 . 1 Alerts 4 | . 1 1 . . . . . . . . . 1 1 . Weapon Failures 5 | . 1 . . . . . . 3 1 . . . . . Overload Shots . | . . . . . . . . . . . . . . . Overflow Damage 249 | . 4 . 6 . . . . 5 97 9 70 . . 58 Projectiles 22 | . 4 . . . . . . . 9 9 . . . . Explosions 11 | . . . 6 . . . . 5 . . . . . . Melee 216 | . . . . . . . . . 88 . 70 . . 58 Knockbacks 49 | . . . . . . . 12 5 15 1 9 7 . . Impact 4 | . . . . . . . . . 3 . 1 . . . Kinetic 44 | . . . . . . . 12 5 12 1 7 7 . . Secondary 1 | . . . . . . . . . . . 1 . . . Self-Inflicted Damage 87 | . . . . . . . . 31 . . 40 . . 16 Shots 3 | . . . . . . . . 1 . . 1 . . 1 Rammed 2 | . . . . . . . 1 . . . 1 . . . Targets Rammed 4 | . . . . . . . 2 . 1 . 1 . . . Kicked . | . . . . . . . . . . . . . . . Crushed 2 | . . . . . . . 1 . 1 . . . . . Highest Temperature 619 | . 319 188 134 . . . 387 280 419 309 493 196 619 251 Average Temperature 111 | . 91 108 48 . . . 104 88 104 132 172 107 257 142 Received Heat Transfer 1734 | . 234 132 45 . . . 333 333 192 90 30 45 300 . Effects 27 | . . . . . . . . 1 3 2 7 . 14 . Shutdowns 8 | . . . . . . . . . 3 . 2 . 3 . Energy Bleed 5 | . . . . . . . . 1 . 2 1 . 1 . Interference 6 | . . . . . . . . . . . 3 . 3 . Matter Decay 2 | . . . . . . . . . . . . . 2 . Damage (minor) 1 | . . . . . . . . . . . 1 . . . Damage (major) 4 | . . . . . . . . . . . . . 4 . Damage (core) 1 | . . . . . . . . . . . . . 1 . Siege Activations . | . . . . . . . . . . . . . . . Martial Activations . | . . . . . . . . . . . . . . . Shielding Activations . | . . . . . . . . . . . . . . . Robots Disrupted . | . . . . . . . . . . . . . . . Combat Hostiles . | . . . . . . . . . . . . . . . Robots Corrupted 1 | . . . . . . . . . . . 1 . . . Combat Hostiles . | . . . . . . . . . . . . . . . Parts Fried 2 | . . . . . . . 1 . . . 1 . . . Impact Corruptions 8 | . . . . . . . . . 4 . 2 . . 2 Robots Melted 2 | . . . . . . . . . . . . . 2 . Combat Hostiles 2 | . . . . . . . . . . . . . 2 . Parts Melted 3 | . 1 . . . . . . . . . . . 2 . Heat Transferred 3194 | . 1406 74 50 . . . . 50 622 185 . 333 474 . Parts Sabotaged . | . . . . . . . . . . . . . . . Parts Stolen . | . . . . . . . . . . . . . . . Parts Stripped . | . . . . . . . . . . . . . . . Power Chain Reactions 2 | . . . 1 . . . . 1 . . . . . . Alert | -11 -10 -10 -9 -9 -9 -8 -8 -7 -6 -5 -4 -4 -4 -3 ------- Run | Yrd Mat Min Mat Min Exi Min Mat Fac Fac Fac Fac Upp Upp Res Maximum Alert Level 1 | . . . . . . . . . 1 . . . . . Low Security (%) 93 | 100 100 100 100 100 . 100 100 100 75 100 100 . . 100 Level 1 6 | . . . . . . . . . 24 . . . . . Level 2 . | . . . . . . . . . . . . . . . Level 3 . | . . . . . . . . . . . . . . . Level 4 . | . . . . . . . . . . . . . . . Level 5 . | . . . . . . . . . . . . . . . High Security . | . . . . . . . . . . . . . . . Max Security . | . . . . . . . . . . . . . . . Peak Influence 326 | . 114 62 84 25 . . 162 164 326 159 94 . . 15 Initial 159 | . . 5 . 25 . . . 50 26 159 19 . . . Average 51 | . 36 11 9 . . . 57 40 106 45 17 . . . Influence Increases 3910 | . 420 190 173 . . . 642 537 826 124 252 525 200 21 Destroy 0b10 Robot/C 2320 | . 280 160 80 . . . 400 360 460 80 100 260 140 . Destroy 0b10 Robot/NC 130 | . 35 . 25 . . . 20 . 15 5 30 . . . Destroy Leader 556 | . 58 30 24 . . . 114 110 120 10 20 40 30 . Allied During Kill 42 | . . . 6 . . . 36 . . . . . . . Trap Triggered on 0b10 50 | . . . . . . . 10 10 30 . . . . . Successful Hack 56 | . 15 . 7 . . . . . 26 . 8 . . . Disable Machine 225 | . 30 . 30 . . . 45 . 90 15 15 . . . Destroy Structure 156 | . 2 . 1 . . . 2 27 70 14 34 . . 6 Partial Spotted 30 | . . . . . . . . . 15 . . . . 15 Lose Combat Pursuer 345 | . . . . . . . 15 30 . . 45 225 30 . Influence Decreases 3910 | . 405 205 106 67 . . 530 594 555 410 292 452 273 21 Entered New Map 346 | . . 10 . 42 . . . 62 29 167 21 . 15 . Time Decay 3075 | . 379 195 106 25 . . 430 391 435 239 231 397 230 17 Lost Part 429 | . 26 . . . . . 40 141 91 4 40 55 28 4 Lost Ally 60 | . . . . . . . 60 . . . . . . . Squads Dispatched 37 | . 2 1 1 . . . 7 7 12 1 6 . . . Investigation . | . . . . . . . . . . . . . . . Extermination 17 | . . . . . . . . 5 8 1 3 . . . Reinforcement 19 | . 2 . 1 . . . 7 2 4 . 3 . . . Assault 1 | . . 1 . . . . . . . . . . . . Garrison . | . . . . . . . . . . . . . . . Intercept . | . . . . . . . . . . . . . . . Searches Triggered . | . . . . . . . . . . . . . . . Construction Impeded 3 | . . . . . . . . 1 . . 2 . . . Haulers Reinforced . | . . . . . . . . . . . . . . . Active Scanning Responses . | . . . . . . . . . . . . . . . Cargo Convoy Interrupts . | . . . . . . . . . . . . . . . Stealth | -11 -10 -10 -9 -9 -9 -8 -8 -7 -6 -5 -4 -4 -4 -3 --------- Run | Yrd Mat Min Mat Min Exi Min Mat Fac Fac Fac Fac Upp Upp Res Distress Signals 11 | . . . 1 . . . 2 3 1 1 3 . . . Communications Jammed . | . . . . . . . . . . . . . . . Distress Signals . | . . . . . . . . . . . . . . . Times Spotted 191 | . 28 8 11 . . . 24 29 29 6 15 20 12 9 Peak Tracking Total 9 | . 3 3 3 . . . 6 7 5 2 6 4 4 9 Tactical Retreats 15 | . . . . . . . 1 1 . . 1 11 1 . Traps | -11 -10 -10 -9 -9 -9 -8 -8 -7 -6 -5 -4 -4 -4 -3 ------- Run | Yrd Mat Min Mat Min Exi Min Mat Fac Fac Fac Fac Upp Upp Res Traps Triggered 8 | . 2 . . . . . 1 3 . . 1 . . 1 Indirectly . | . . . . . . . . . . . . . . . Trap Hack Attempts . | . . . . . . . . . . . . . . . Triggered . | . . . . . . . . . . . . . . . Disarmed . | . . . . . . . . . . . . . . . Reprogrammed . | . . . . . . . . . . . . . . . Reused 5 | . . . . . . . 1 1 3 . . . . . Traps Reconfigurated 28 | . . . . . . . 2 17 9 . . . . . Traps Extracted . | . . . . . . . . . . . . . . . Installed . | . . . . . . . . . . . . . . . Triggered 5 | . . . . . . . 1 1 3 . . . . . Machines | -11 -10 -10 -9 -9 -9 -8 -8 -7 -6 -5 -4 -4 -4 -3 ---------- Run | Yrd Mat Min Mat Min Exi Min Mat Fac Fac Fac Fac Upp Upp Res Machines Disabled 15 | . 2 . 2 . . . 3 . 6 1 1 . . . Max in Single Turn 1 | . 1 . 1 . . . 1 . 1 1 1 . . . Garrison Access 3 | . . . . . . . 1 . 1 . 1 . . . Machines Repaired . | . . . . . . . . . . . . . . . Machines Dismantled . | . . . . . . . . . . . . . . . Machines Sabotaged . | . . . . . . . . . . . . . . . Overloaded Fab Kills . | . . . . . . . . . . . . . . . Hacking | -11 -10 -10 -9 -9 -9 -8 -8 -7 -6 -5 -4 -4 -4 -3 --------- Run | Yrd Mat Min Mat Min Exi Min Mat Fac Fac Fac Fac Upp Upp Res Machines Accessed 22 | . 3 . 3 . 1 . 3 2 4 1 4 1 . . Terminals 14 | . 3 . 3 . . . 2 1 3 1 1 . . . Fabricators 1 | . . . . . . . . 1 . . . . . . Repair Stations 2 | . . . . . . . . . . . 2 . . . Recycling Units . | . . . . . . . . . . . . . . . Scanalyzers . | . . . . . . . . . . . . . . . Garrison Access 3 | . . . . . . . 1 . 1 . 1 . . . Total Hacks 31 | . 6 . 5 . 1 . 3 2 6 2 5 1 . . Successful 15 | . 5 . 1 . 1 . 1 . 4 . 2 1 . . Failed 16 | . 1 . 4 . . . 2 2 2 2 3 . . . Catastrophic 6 | . . . 2 . . . 2 1 1 . . . . . Database Lockouts . | . . . . . . . . . . . . . . . Manual 16 | . 3 . 5 . 1 . 2 1 . 2 1 1 . . Terminals 21 | . 6 . 5 . . . 2 1 4 2 1 . . . Fabricators 1 | . . . . . . . . 1 . . . . . . Repair Stations 2 | . . . . . . . . . . . 2 . . . Recycling Units . | . . . . . . . . . . . . . . . Scanalyzers . | . . . . . . . . . . . . . . . Garrison Access 5 | . . . . . . . 1 . 2 . 2 . . . Terminal Hacks 11 | . 5 . 1 . 1 . . . 3 . . 1 . . Open Door 1 | . . . . . . . . . . . . 1 . . Level Access Points 2 | . 1 . . . . . . . 1 . . . . . Branch Access Points 3 | . 1 . 1 . . . . . 1 . . . . . Emergency Access Points 2 | . 2 . . . . . . . . . . . . . Alert Level 1 | . . . . . . . . . 1 . . . . . Locate Traps 1 | . 1 . . . . . . . . . . . . . Proto ID Catalog 1 | . . . . . 1 . . . . . . . . . Fabricator Hacks . | . . . . . . . . . . . . . . . Repair Station Hacks 1 | . . . . . . . . . . . 1 . . . Scan Component 1 | . . . . . . . . . . . 1 . . . Recycling Unit Hacks . | . . . . . . . . . . . . . . . Scanalyzer . | . . . . . . . . . . . . . . . Garrison Access Hacks 3 | . . . . . . . 1 . 1 . 1 . . . Seal Access 3 | . . . . . . . 1 . 1 . 1 . . . Unauthorized Hacks . | . . . . . . . . . . . . . . . Terminals . | . . . . . . . . . . . . . . . Fabricators . | . . . . . . . . . . . . . . . Repair Stations . | . . . . . . . . . . . . . . . Recycling Units . | . . . . . . . . . . . . . . . Scanalyzers . | . . . . . . . . . . . . . . . Garrison Access . | . . . . . . . . . . . . . . . Data Cores Recovered . | . . . . . . . . . . . . . . . Used . | . . . . . . . . . . . . . . . Hacking Detections 13 | . 1 . 2 . . . . 1 4 1 4 . . . Full Trace Events . | . . . . . . . . . . . . . . . Feedback Events . | . . . . . . . . . . . . . . . Feedback Blocked . | . . . . . . . . . . . . . . . Robot Schematics Acquired . | . . . . . . . . . . . . . . . Robots Built . | . . . . . . . . . . . . . . . Authchips . | . . . . . . . . . . . . . . . Time . | . . . . . . . . . . . . . . . Total Robot Build Rating . | . . . . . . . . . . . . . . . Part Schematics Acquired . | . . . . . . . . . . . . . . . Parts Built . | . . . . . . . . . . . . . . . Authchips . | . . . . . . . . . . . . . . . Time . | . . . . . . . . . . . . . . . Total Part Build Rating . | . . . . . . . . . . . . . . . Parts Repaired . | . . . . . . . . . . . . . . . Time . | . . . . . . . . . . . . . . . Parts Recycled . | . . . . . . . . . . . . . . . Recycled Matter . | . . . . . . . . . . . . . . . Retrieved Matter . | . . . . . . . . . . . . . . . Retrieved Components . | . . . . . . . . . . . . . . . Parts Scanalyzed . | . . . . . . . . . . . . . . . Part Schematics Acquired . | . . . . . . . . . . . . . . . Parts Damaged . | . . . . . . . . . . . . . . . Bothacking | -11 -10 -10 -9 -9 -9 -8 -8 -7 -6 -5 -4 -4 -4 -3 ------------ Run | Yrd Mat Min Mat Min Exi Min Mat Fac Fac Fac Fac Upp Upp Res Used RIF Installer . | . . . . . . . . . . . . . . . Robots Hacked . | . . . . . . . . . . . . . . . Non-combat . | . . . . . . . . . . . . . . . Combat . | . . . . . . . . . . . . . . . Robot Hacks Applied . | . . . . . . . . . . . . . . . Relay Couplers Released 3 | . . . . . . . . 3 . . . . . . Programmers 3 | . . . . . . . . 3 . . . . . . Fabnet Peak Effective % . | . . . . . . . . . . . . . . . Robots Rewired . | . . . . . . . . . . . . . . . Allies Hacked . | . . . . . . . . . . . . . . . Hacks Repelled . | . . . . . . . . . . . . . . . Allies | -11 -10 -10 -9 -9 -9 -8 -8 -7 -6 -5 -4 -4 -4 -3 -------- Run | Yrd Mat Min Mat Min Exi Min Mat Fac Fac Fac Fac Upp Upp Res Total Allies 5 | . . 1 . 4 . . . . . . . . . . Largest Group 5 | . . 1 1 5 4 4 3 . . . . . . . Highest-Rated Group 102 | . . 31 31 102 71 71 63 . . . . . . . Highest-Rated Ally 31 | . . 31 31 31 31 31 31 . . . . . . . Total Orders . | . . . . . . . . . . . . . . . Ally Attacks 83 | . . . 32 . . . 51 . . . . . . . Total Damage 912 | . . . 333 . . . 579 . . . . . . . Kills 14 | . . . 7 . . . 7 . . . . . . . Allies Corrupted . | . . . . . . . . . . . . . . . Allies Melted . | . . . . . . . . . . . . . . . Intel | -11 -10 -10 -9 -9 -9 -8 -8 -7 -6 -5 -4 -4 -4 -3 ------- Run | Yrd Mat Min Mat Min Exi Min Mat Fac Fac Fac Fac Upp Upp Res Active Infowar (turns) 10474 | . 513 . . . . . 2717 3096 1528 794 339 1484 3 . Terrain 513 | . 513 . . . . . . . . . . . . . Structural 7341 | . . . . . . . 2717 3096 1528 . . . . . Cloaking 2617 | . . . . . . . . . . 794 339 1484 . . ECM 3 | . . . . . . . . . . . . . 3 . Robot Analysis Total . | . . . . . . . . . . . . . . . Derelict Logs Recovered 5 | . . 1 . 1 . . . . . . . 3 . . Drone Launches . | . . . . . . . . . . . . . . . Drone Recoveries . | . . . . . . . . . . . . . . . Exploration | -11 -10 -10 -9 -9 -9 -8 -8 -7 -6 -5 -4 -4 -4 -3 ------------- Run | Yrd Mat Min Mat Min Exi Min Mat Fac Fac Fac Fac Upp Upp Res Turns Passed 25343 | 95 2502 1165 869 1230 1330 71 2738 3097 4964 795 1255 3134 1713 385 Spaces Moved 8690 | 64 1129 438 252 385 416 23 668 1020 1728 267 366 1250 494 190 Core 149 | 19 . . . . . . . . . . . . 5 125 Treads 7850 | 45 654 224 252 385 416 23 668 1020 1728 267 366 1250 487 65 Legs . | . . . . . . . . . . . . . . . Wheels 691 | . 475 214 . . . . . . . . . . 2 . Hover . | . . . . . . . . . . . . . . . Flight . | . . . . . . . . . . . . . . . Fastest Speed 50 | 50 140 140 320 320 320 320 240 240 240 240 240 240 215 50 Average Speed 248 | 127 185 232 320 320 320 320 240 259 241 240 240 240 328 188 Slowest Speed 1900 | 160 320 320 320 320 320 320 320 325 400 240 240 320 1650 1900 Overloaded Moves . | . . . . . . . . . . . . . . . Propulsion Burnouts . | . . . . . . . . . . . . . . . Robots Hopped . | . . . . . . . . . . . . . . . Potential Cave-ins . | . . . . . . . . . . . . . . . Cave-ins Triggered 1 | . . . . . . . . . 1 . . . . . Exploration Rate (%) 44 | 6 99 84 28 77 80 12 48 35 31 7 9 95 47 9 Regions Visited 14 Branch Regions 6 Pre-discovered Areas . | . . . . . . . . . . . . . . . Known Exits Taken 11 | . 1 1 1 . . 1 1 1 1 1 1 1 1 . Unknown Exits Taken 3 | 1 . . . 1 1 . . . . . . . . . Scrap Searched 7 | . . 1 . 1 . . . . . . . 4 1 . Spaces Dug 69 | . . . . . . . 1 3 46 . 18 . . 1 Terrain Destroyed 192 | . . . 1 . . . 1 32 67 6 18 39 23 5 Melee 69 | . . . . . . . 1 3 46 . 18 . . 1 Projectile 28 | . . . . . . . . . 15 6 . 2 5 . AOE 95 | . . . 1 . . . . 29 6 . . 37 18 4 Terrain Rammed . | . . . . . . . . . . . . . . . Walls Destroyed . | . . . . . . . . . . . . . . . Machines Disabled . | . . . . . . . . . . . . . . . Actions | -11 -10 -10 -9 -9 -9 -8 -8 -7 -6 -5 -4 -4 -4 -3 --------- Run | Yrd Mat Min Mat Min Exi Min Mat Fac Fac Fac Fac Upp Upp Res Total 11653 | 79 1420 543 294 385 417 22 1725 1377 2276 399 653 1309 545 209 Wait 2085 | . 183 59 19 1 . . 953 218 300 110 227 7 5 3 Move 8676 | 63 1128 437 251 384 415 22 667 1019 1727 266 365 1249 493 190 Hop . | . . . . . . . . . . . . . . . Pick Up 165 | 10 29 6 5 . 1 . 20 29 37 4 5 7 9 3 Fast Attach 13 | . . . 1 . . . 2 6 3 . . . . 1 Attach 97 | 5 6 5 1 . . . 6 17 18 4 6 10 13 6 Detach 2 | . . . . . . . . . . . . . 1 1 Swap 60 | . 3 3 . . . . 9 6 23 2 5 6 2 1 Drop 86 | 1 5 4 4 . 1 . 19 17 33 2 . . . . Fire 350 | . 66 29 13 . . . 44 60 53 11 22 30 22 . Melee 113 | . . . . . . . 3 3 81 . 22 . . 4 Ram . | . . . . . . . . . . . . . . . Kick . | . . . . . . . . . . . . . . . Crush 4 | . . . . . . . 2 . 1 . 1 . . . Escape Stasis 2 | . . . . . . . . 2 . . . . . . Rewire . | . . . . . . . . . . . . . . . Trap . | . . . . . . . . . . . . . . . Miscellaneous . | . . . . . . . . . . . . . . . Route ------- -11/Scrapyard -10/Materials (discovered 6 exits: *Mat x3 / *Min x2 / [*Sub]) -10/Mines -9/Materials (discovered 4 exits: Mat / *Min / *Sto x2) -9/Mines (discovered 4 exits: *Mat x2 / *Exi / [*Zio]) -9/Exiles -8/Mines -8/Materials -7/Factory -6/Factory (discovered 8 exits: *Fac x4 / Low x2 / Ext x2) -5/Factory -4/Factory -4/Upper Caves -4/Upper Caves -3/Research (discovered 1 exit: Res) History --------- Turn | Location | Event 11 | -11/Scrapyard | Discovered new exit (range 13) 96 | -11/Scrapyard | Entered Materials 274 | -10/Materials | Discovered new exit (range 8) 300 | -10/Materials | Build established: Mutant 490 | -10/Materials | Discovered new exit (range 9) 841 | -10/Materials | Discovered new exit (range 4) 1032 | -10/Materials | Discovered new exit (range 5) 1608 | -10/Materials | Discovered new exit (range 6) 1795 | -10/Materials | Discovered new exit (range 14) 2422 | -10/Materials | Identified exit to Materials 2422 | -10/Materials | Identified exit to Mines 2598 | -10/Materials | Entered Mines 2844 | -10/Mines | Core integrity fell below 50% 2994 | -10/Mines | Core integrity fell below 20% 3296 | -10/Mines | Build established: Scavenger-Mutant 3506 | -10/Mines | Learned 2 Materials zone layouts 3536 | -10/Mines | Received a Rocket Launcher from a helpful Derelict 3734 | -10/Mines | Discovered exit to Materials (range 6) 3742 | -10/Mines | Met a Derelict testing a Signal Generator 3763 | -10/Mines | Entered Materials 3763 | -9/Materials | Accompanied by 1 ally 3763 | -9/Materials | Evolved 2 slots: Utility x1, Weapon x1 3764 | -9/Materials | Identified exit to Materials 3852 | -9/Materials | Discovered new exit (range 14) 4078 | -9/Materials | Build established: Scavenger-Tank 4179 | -9/Materials | Identified exit to Mines 4179 | -9/Materials | Identified exit to Storage 4632 | -9/Materials | Entered Mines 4632 | -9/Mines | Accompanied by 1 ally 5026 | -9/Mines | Assisted by bots powering up and referring to "LRC-V3" 5263 | -9/Mines | Learned location of 1 exit from Lower Caves 5503 | -9/Mines | Discovered exit to Materials (range 7) 5506 | -9/Mines | Received a Mining Laser from a helpful Derelict 5689 | -9/Mines | Found a Scrap Suit stashed away for nefarious purposes 5753 | -9/Mines | Discovered exit to Materials (range 5) 5815 | -9/Mines | A Derelict revealed a hidden shortcut to a safe place 5849 | -9/Mines | Deemed a non-threat by the Exiles lab entrance 5849 | -9/Mines | Discovered new exit (range 5) 5862 | -9/Mines | Entered Exiles 5862 | -9/Exiles | Accompanied by 4 allies 5952 | -9/Exiles | Met 8R-AWN 6000 | -9/Exiles | Met EX-HEX 6093 | -9/Exiles | Met EX-BIN 6138 | -9/Exiles | Aligned with FarCom system 6141 | -9/Exiles | Given EX-Vault access code 6246 | -9/Exiles | Opened EX-Vault 6276 | -9/Exiles | Found Trap Reconfigurator 6341 | -9/Exiles | Warned to stay clear of 0b10 Research branches 6427 | -9/Exiles | Met EX-DEC 6627 | -9/Exiles | Visited The Gauntlet 7109 | -9/Exiles | Discovered new exit (range 14) 7192 | -9/Exiles | Left Exiles lab with Trap Reconfigurator 7192 | -9/Exiles | Entered Mines 7192 | -8/Mines | Accompanied by 4 allies 7221 | -8/Mines | Discovered exit to Materials (range 13) 7263 | -8/Mines | Entered Materials 7263 | -8/Materials | Accompanied by 3 allies 7263 | -8/Materials | Evolved 2 slots: Propulsion x1, Utility x1 7498 | -8/Materials | Build established: Scavenger-Skirmisher 9446 | -8/Materials | Build established: Skirmisher 9786 | -8/Materials | Build established: Mutant 9962 | -8/Materials | Discovered new exit (range 10) 9999 | -8/Materials | Identified exit to Factory 10001 | -8/Materials | Entered Factory 10001 | -7/Factory | Evolved 2 slots: Power x1, Utility x1 10909 | -7/Factory | Lost 4 parts (1p3n) 11438 | -7/Factory | Build established: Scavenger-Skirmisher 11512 | -7/Factory | Lost 3 parts (1p2w) 12062 | -7/Factory | Build established: Skirmisher 12497 | -7/Factory | System corruption reached 10% 13021 | -7/Factory | Discovered new exit (range 16) 13096 | -7/Factory | Identified exit to Factory 13098 | -7/Factory | Entered another Factory area 13098 | -6/Factory | Evolved 2 slots: Utility x1, Weapon x1 13277 | -6/Factory | Lost 7 parts (3p2n1u1w) 14343 | -6/Factory | Build established: Scavenger-Skirmisher 14944 | -6/Factory | Build established: Skirmisher 15310 | -6/Factory | Build established: Hacker-Skirmisher 16308 | -6/Factory | Identified exit to Lower Caves 16308 | -6/Factory | Identified exit to Extension 16477 | -6/Factory | Crushed by falling debris 16771 | -6/Factory | Build established: Skirmisher 16821 | -6/Factory | Core integrity fell below 50% 17360 | -6/Factory | Identified exit to Factory 18062 | -6/Factory | Entered another Factory area 18062 | -5/Factory | Evolved 2 slots: Utility x2 18350 | -5/Factory | Build established: Tank 18802 | -5/Factory | Discovered new exit (range 7) 18817 | -5/Factory | Identified exit to Factory 18857 | -5/Factory | Entered another Factory area 18857 | -4/Factory | Evolved 2 slots: Propulsion x1, Utility x1 19260 | -4/Factory | Lost 3 parts (1n1u1w) 19558 | -4/Factory | Build established: Gunner 20062 | -4/Factory | Discovered new exit (range 12) 20095 | -4/Factory | Identified exit to Upper Caves 20112 | -4/Factory | Entered Upper Caves 20113 | -4/Upper Caves | Build established: Hacker-Gunner 20190 | -4/Upper Caves | Lost 8 parts (2p2n2u2w) 20532 | -4/Upper Caves | Learned Research stockpile data 21023 | -4/Upper Caves | Spotted B-86 Titan 21853 | -4/Upper Caves | Attracted the attention of an 0b10 checkpoint 22003 | -4/Upper Caves | Learned location of 1 exit from Research 22464 | -4/Upper Caves | Learned Research garrison access intel 23211 | -4/Upper Caves | Destroyed B-86 Titan 23222 | -4/Upper Caves | Discovered new exit (range 5) 23234 | -4/Upper Caves | Identified exit to Upper Caves 23246 | -4/Upper Caves | Entered another Upper Caves area 23597 | -4/Upper Caves | Core integrity fell below 50% 23633 | -4/Upper Caves | Lost 5 parts (2u3w) 24252 | -4/Upper Caves | Discovered new exit (range 16) 24291 | -4/Upper Caves | Encountered a Warlord checkpoint 24546 | -4/Upper Caves | Identified exit to Research 24711 | -4/Upper Caves | Attracted the attention of an 0b10 checkpoint 24752 | -4/Upper Caves | Core integrity fell below 20% 24796 | -4/Upper Caves | Lost 8 parts (2p3n3w) 24959 | -4/Upper Caves | Entered Research 24959 | -3/Research | Evolved 2 slots: Power x1, Weapon x1 24960 | -3/Research | Identified exit to Research 24962 | -3/Research | Loaded intel: 4 garrison access locations 25023 | -3/Research | Build established: Hacker-Mutant 25251 | -3/Research | System corruption reached 10% 25270 | -3/Research | Released all parts (8) 25293 | -3/Research | Lost 9 parts (3p1n3u2w) 25310 | -3/Research | Core integrity fell below 50% 25334 | -3/Research | Core integrity fell below 20% 25344 | -3/Research | Destroyed by P-80 Master with Gamma Rifle Last Messages --------------- 25287_ P-80 Master suffers critical hit (Smash). 25287_ Destroyed Sml. Battery. 25287_ Destroyed Adv. Heat Sink. 25287_ P-80 Master system corrupted by crushing effect. 25289_ P-80 Master resets P-80 Master, system corruption cleaned. 25291_ U-05 Engineer lays Concrete. 25293_ System corrupted: Component data lost. 25294_ U-05 Engineer builds a Wall. 25299_ Acquired 10 matter. 25299_ R-10 Processor collects Adv. Heat Sink. 25301_ Powered Hammer destroyed. 25308_ UM0643W0RAC8E,3,7MH:C5 25309_ Triggered Tiamat Bomb Trap. 25309_ An explosion rips through the floor. 25323_ System corrupted: Matter fused (-5). 25330_ P-80 Master resets K-01 Serf, system corruption cleaned. 25342_ System corrupted: Heat flow error (+297). Map ----- +----------------------------------------------------+ | ???# ?# ???????????????????? | | ???# ?# ###########?????????????????????? | | ???#######??# #???????????????????????????????? | | ????????????# #???????????????????????????????? | | ????????????# #???????????????????????????????? | | ??########### #???????????????????????????????? | | ??# # #???????????????????????????????? | | ??# # #???????????????????????????????? | | ??#""" # #???????????????????????????????? | | ??#""" # #???????????????????????????????? | | ??#""" # ###+#######?????????????????????? | | ??# + ????????????????????? | | ??# # ????????????????????? | | ??# # ????????????????????? | | ??######+#### ????????????????????? | | ???????# #??# """ """?????????????????????? | | ???????# #??# """ ""??????????????????????? | | ?????### #### """ ""??????????????????????? | | ?????# ????????????????????? | | ?????# ???????????????????? | | ??#### ??????????!?????????? | | ??+ = ????????????????????? | | ??#### ######"" ""#################???????????? | | ?????# #?????""G""#??# #???????????? | | ###### p############### #???????????? | | p /@ #???????????? | | s # #???????????? | | + #???????????? | | s ss # #???????????? | | ###################"##s# #???????????? | | ???????????????#= # #???????????? | | ???????????????# # #???????????? | | ???????????????# # #???????????? | | ???????????????# """ # #???????????? | | ???????????????# """" # #???????????? | | ???????????????# """" ##############???????????? | | ???????????????# """ #????????????????????????? | | ???????????????# #????????????????????????? | | ???????????!???# #????????????????????????? | | ???????????????##?#?#####????????????????????????? | | ?????????????????????????????????????????????????? | | ?????????????????????????????????????????????????? | | ?????????????????????????????????????????????????? | | ?????????????????????????????????????????????????? | | ?????????????????????????????????????????????????? | | ?????????????????????????????????????????????????? | | ?????????????????????????????????????????????????? | | ?????????????????????????????????????????????????? | | ?????????????????????????????????????????????????? | | ?????????????????????????????????????????????????? | +----------------------------------------------------+ Best States ------------- Heat Dissipation 92 Coolant Potential 65 Energy Generation 41 Energy Capacity 1000 Matter Stores 300 Matter Capacity 400 Sight Range 16 Terrain Scan Range 14 Terrain Scan Density 10 Cloak Strength 2 Base Temperature (-) 200 Armor Coverage 375 Resistance: TH 20 Power Shielding 66 Weapon Cycling 15 Evasion (%) 50 Targeting Accuracy 8 Target Analysis 6 Core Analysis 6 Recoil Reduction 4 Matter Filtering 30 Offensive Hacking 34 Item Schematics ----------------- None Robot Schematics ------------------ None Fabricated ------------ Nothing Repaired ---------- Nothing Alien Tech Used ----------------- None Achievements -------------- Knowing Is Half The Battle Challenges ------------ None Game ------ Seed WardroneHardcellSystem Manual? 0 Play Time 02:24:34 Cumulative 62.0 hours Start 2025.07.30 @ 22:10:06 End 2025.07.31 @ 23:30:25 Sessions 3 Manual Loads 0 Difficulty Rogue Special Mode None Game No. 118 Rogue 118 Adventurer 0 Explorer 0 Win Type - Total 0 Types 0/0/0/0/0/0/0/0/0/0 Lore% 14 Gallery% 36 Achievement% 29 Wizard Run 0 Options --------- Layout 1 ASCII 0 Keyboard 0 Movement Mouse Keybinds 0 Fullscreen 2 Font 32/SmallcapsGlow Map View 50x35 Zoom Use 0% Tactical HUD 1 Map Filters NONE Filters NONE Steam 1 RUN: ff615c10-890b-41a8-981c-2378d1a8d0ea